lending/lending_fUSD_20241103
["ID","MTS","AMOUNT","RATE_DAILY","PERIOD"]
[341212221,1730649040404,-699.54853206,0.00042405,2]
[341212223,1730649040414,-594.21,0.00042464,2]
[341212224,1730649040425,-555.72,0.00042464,2]
[341212225,1730649040435,-150.0,0.00042464,2]
[341212226,1730649040452,-500.0,0.00042537,2]
[341212227,1730649040462,-500.0,0.00042537,2]
[341212228,1730649040472,-20833.33,0.00042537,2]
[341212229,1730649040481,-500.0,0.00042537,2]
[341212230,1730649040491,-1406.52,0.00042537,2]
[341212231,1730649040500,-559.99,0.00042537,2]
[341212232,1730649040509,-485.19193143,0.00042558,15]
[341212233,1730649040517,-699.54853206,0.00042628,2]
[341212234,1730649040527,-150.0,0.00042643,2]
[341212235,1730649040536,-150.0,0.00042659,2]
[341212236,1730649040546,-150.0,0.00042682,2]
[341212237,1730649040555,-152.63,0.000427,33]
[341212238,1730649040564,-152.63,0.000427,33]
[341212239,1730649040573,-152.63,0.000427,33]
[341212240,1730649040582,-152.63,0.000427,33]
[341212241,1730649040591,-152.63,0.000427,33]
[341212242,1730649040600,-152.63,0.000427,33]
[341212243,1730649040609,-150.0,0.00042718,2]
[341212244,1730649040618,-150.0,0.00042724,2]
[341212245,1730649040627,-594.21,0.00042738,2]
[341212246,1730649040637,-555.72,0.00042738,2]
[341212247,1730649040646,-150.0,0.00042742,2]
[341212248,1730649040655,-150.0,0.00042743,2]
[341212249,1730649040665,-150.0,0.00042783,2]
[341212250,1730649040674,-150.0,0.0004279,2]
[341212251,1730649040683,-150.0,0.00042794,2]
[341212252,1730649040692,-150.0,0.00042797,2]
[341212253,1730649040705,-152.0,0.000428,20]
[341212254,1730649040714,-1531.29710236,0.000428,60]
[341212255,1730649040723,-328022.32433085,0.000428,120]
[341212273,1730649044048,-500.0,0.00040618,31]
[341212274,1730649044058,-219.25,0.00040618,31]
[341212275,1730649044070,-348.32332309,0.00040618,31]
[341212276,1730649044079,-390.26802244,0.000428,120]
[341212277,1730649044091,-1654.67542206,0.000428,120]
[341212279,1730649044284,-279.0,0.000386,5]
[341212280,1730649044294,-4620.02656918,0.000428,120]
[341212382,1730649046045,-609.88769645,0.000428,120]
[341212401,1730649046227,-3140.65943334,0.000428,120]
[341212403,1730649046239,-1088.0,0.000428,120]
[341212559,1730650074114,156.52,0.00015342,2]
[341212567,1730650231945,-250.0,0.00021,2]
[341212568,1730650231955,-2035.0,0.000218,2]
[341212569,1730650231964,-300.0,0.00023,2]
[341212570,1730650231973,-204.0,0.00025,2]
[341212571,1730650231983,-700.0,0.000296,11]
[341212572,1730650231992,-700.0,0.000296,11]
[341212573,1730650232001,-700.0,0.000296,11]
[341212574,1730650232010,-700.0,0.000296,11]
[341212575,1730650232019,-700.0,0.000296,11]
[341212576,1730650232028,-170.878,0.0003,2]
[341212577,1730650232037,-500.0,0.00033425,15]
[341212578,1730650232047,-500.0,0.00033425,15]
[341212579,1730650232055,-511.30514598,0.00033425,15]
[341212580,1730650232065,-152.76,0.000377,31]
[341212581,1730650232074,-185.71,0.00037795,2]
[341212582,1730650232084,-268.38,0.00038843,2]
[341212583,1730650232093,-23900.0,0.00039391,2]
[341212584,1730650232102,-1000.0,0.00039538,2]
[341212585,1730650232111,-200.0,0.00039538,2]
[341212586,1730650232122,-334.39,0.00039554,2]
[341212587,1730650232130,-150.0,0.00039581,7]
[341212588,1730650232139,-181.93,0.0003963,2]
[341212589,1730650232148,-2064.66,0.0003967,2]
[341212590,1730650232158,-250.02,0.00039697,2]
[341212591,1730650232167,-250.0,0.0003973,2]
[341212592,1730650232176,-177.99,0.0003973,2]
[341212593,1730650232185,-363.49948784,0.0004,30]
[341212594,1730650232193,-820.0,0.0004,60]
[341212595,1730650232202,-161.99,0.00040025,120]
[341212596,1730650232211,-185.71,0.00040059,2]
[341212597,1730650232220,-173.26,0.00040067,120]
[341212598,1730650232229,-152.76,0.000402,31]
[341212599,1730650232238,-152.76,0.000402,31]
[341212600,1730650232247,-13073.86398417,0.00040286,2]
[341212601,1730650232261,-632.52305136,0.00040286,2]
[341212603,1730650232273,-12074.22296447,0.00040286,2]
[341212604,1730650232282,-180.83,0.00040509,10]
[341212606,1730650232291,-150.69,0.00040509,10]
[341212607,1730650232300,-562.466,0.00040509,58]
[341212608,1730650232309,-15674.68316012,0.00040519,2]
[341212612,1730650232421,-1333.53355332,0.00040519,2]
[341212614,1730650232432,-734.19601392,0.00040519,2]
[341212616,1730650232443,-447.545664,0.00040519,2]
[341212618,1730650232454,-3403.73811044,0.00040519,2]
[341212621,1730650232476,-1395.21,0.00040519,2]
[341212881,1730650237943,-1102.8014567,0.00040519,2]
[341212882,1730650237955,-1290.12615958,0.00040519,2]
[341212883,1730650237966,-897.1985433,0.00040519,2]
[341212884,1730650238050,-1223.08800696,0.00040519,2]
[341212885,1730650238061,-683.96020158,0.00040519,2]
[341212890,1730650239943,-173.26,0.00039931,120]
[341212891,1730650239952,-174.592505,0.00040519,2]
[341212892,1730650239964,-8295.0,0.00040519,2]
[341212893,1730650239997,-9389.99999865,0.00040519,2]
[341212894,1730650240105,-346.63410961,0.00040519,2]
[341212895,1730650240131,-2052.34484,0.00040519,2]
[341212896,1730650240158,-324.6333726,0.00040519,2]
[341212897,1730650240169,-1589.050226,0.00040519,2]
[341212903,1730650243179,-21292.64638411,0.00040519,2]
[341212904,1730650243191,-28349.01769411,0.00040519,2]
[341212905,1730650243201,-302.41086123,0.00040744,15]
[341212906,1730650243210,-276.28,0.00040844,2]
[341212907,1730650243220,-1000.0,0.00041,30]
[341212908,1730650243230,-4000.0,0.00041096,30]
[341212909,1730650243239,-157.0,0.00041096,2]
[341212910,1730650243249,-150.0,0.00041096,2]
[341212911,1730650243259,-500.0,0.00041099,31]
[341212912,1730650243269,-247.30132616,0.00041099,31]
[341212913,1730650243279,-1636.0,0.000411,2]
[341212914,1730650243289,-500.0,0.000411,2]
[341212915,1730650243299,-302.41086116,0.00041127,15]
[341212916,1730650243308,-302.41086116,0.0004151,15]
[341212918,1730650243317,-220.83392241,0.00041715,30]
[341212919,1730650243327,-302.41086116,0.00041893,15]
[341212921,1730650243337,-152.66,0.00041965,2]
[341212922,1730650243346,-261.6,0.00041988,2]
[341212923,1730650243356,-500.0,0.00041988,2]
[341212924,1730650243365,-500.0,0.00041988,2]
[341212925,1730650243375,-500.0,0.00041988,2]
[341212926,1730650243387,-500.0,0.00041988,2]
[341212927,1730650243397,-500.0,0.00041988,2]
[341212928,1730650243407,-324.0,0.00042,120]
[341212929,1730650243417,-153.10146773,0.00042,90]
[341212930,1730650243426,-500.0,0.00042122,10]
[341212931,1730650243435,-150.0,0.00042177,2]
[341212932,1730650243445,-500.0,0.0004218,10]
[341212933,1730650243454,-1827.53042661,0.00042262,30]
[341212934,1730650243464,-500.0,0.00042262,2]
[341212935,1730650243473,-500.0,0.00042262,2]
[341212937,1730650243483,-500.0,0.00042262,2]
[341212939,1730650243492,-500.0,0.00042262,2]
[341212940,1730650243501,-500.0,0.00042262,2]
[341212941,1730650243511,-302.41086116,0.00042276,15]
[341212942,1730650243521,-185.71,0.00042323,2]
[341212943,1730650243531,-225.388,0.000424,120]
[341212944,1730650243541,-2000.0,0.00042478,31]
[341212945,1730650243550,-12805.29216586,0.000425,2]
[341212946,1730650243560,-500.0,0.00042536,2]
[341212947,1730650243570,-500.0,0.00042536,2]
[341212948,1730650243579,-500.0,0.00042536,2]
[341212949,1730650243589,-500.0,0.00042536,2]
[341212950,1730650243599,-500.0,0.00042536,2]
[341212951,1730650243609,-411.48063058,0.00042601,2]
[341212952,1730650243618,-760.73,0.00042603,2]
[341212953,1730650243627,-760.73,0.00042603,2]
[341212954,1730650243638,-760.73,0.00042603,2]
[341212955,1730650243648,-377.49248097,0.00042603,2]
[341212956,1730650243664,-383.23751903,0.00042603,2]
[341212957,1730650243673,-152.76,0.000427,33]
[341212958,1730650243683,-152.76,0.000427,33]
[341212959,1730650243692,-13888.89,0.00042738,2]
[341212960,1730650243702,-937.68,0.00042738,2]
[341212961,1730650243716,-500.0,0.00042738,2]
[341212962,1730650243726,-6183.11848097,0.00042739,5]
[341212963,1730650243741,-327.03321695,0.00042728,10]
[341212964,1730650243755,-426.46678305,0.00042728,10]
[341212965,1730650243764,-2219.55822513,0.00042739,5]
[341212970,1730650245949,-302.41086116,0.00042658,15]
[341212971,1730650245959,-3029.01370054,0.00042739,5]
[341212972,1730650245971,-620.24999626,0.00042739,5]
[341212973,1730650245983,-3412.79811985,0.00042739,5]
[341212974,1730650246004,-7529.10000015,0.00042739,5]
[341212975,1730650246016,-3099.83938702,0.00042739,5]
[341212976,1730650246112,-8646.52036436,0.00042739,5]
[341212977,1730650246122,-301.25,0.0004274,2]
[341212978,1730650246134,-8295.0,0.0004275,2]
[341212979,1730650246143,-500.0,0.0004281,2]
[341212980,1730650246153,-500.0,0.0004281,2]
[341212981,1730650246163,-497.79578872,0.0004281,2]
[341212982,1730650246173,-500.0,0.0004281,2]
[341212983,1730650246184,-500.0,0.0004281,2]
[341212984,1730650246193,-159.961,0.0004288,60]
[341212985,1730650246203,-551.00829718,0.00043,2]
[341212986,1730650246215,-13888.89,0.00043012,2]
[341212987,1730650246226,-937.68,0.00043012,2]
[341212988,1730650246237,-500.0,0.00043012,2]
[341212989,1730650246247,-512.77900065,0.00043084,2]
[341212990,1730650246256,-500.0,0.00043084,2]
[341212991,1730650246267,-500.0,0.00043084,2]
[341212992,1730650246277,-500.0,0.00043084,2]
[341212993,1730650246286,-638.16,0.0004325,7]
[341212994,1730650246296,-150.0,0.00043259,2]
[341212995,1730650246305,-13888.89,0.00043286,2]
[341212996,1730650246314,-937.68,0.00043286,2]
[341212997,1730650246324,-500.0,0.00043286,2]
[341212999,1730650246334,-500.0,0.00043358,2]
[341213001,1730650246344,-500.0,0.00043358,2]
[341213002,1730650246353,-500.0,0.00043358,2]
[341213003,1730650246363,-504.44841902,0.00043492,10]
[341213004,1730650246372,-8059.46000247,0.000435,120]
[341213005,1730650246383,-2000.0,0.000435,32]
[341213006,1730650246393,-15272.38536061,0.000435,2]
[341213007,1730650246403,-573.70624325,0.0004355,10]
[341213008,1730650246413,-13888.89,0.0004356,2]
[341213009,1730650246423,-937.68,0.0004356,2]
[341213010,1730650246433,-500.0,0.0004356,2]
[341213011,1730650246443,-760.73,0.00043562,2]
[341213012,1730650246452,-1214.55,0.00043562,2]
[341213013,1730650246461,-853.14,0.00043562,2]
[341213014,1730650246471,-356.68,0.00043562,2]
[341213015,1730650246480,-168.0,0.00043562,2]
[341213016,1730650246489,-150.0,0.00043562,2]
[341213017,1730650246499,-150.0,0.00043562,2]
[341213018,1730650246508,-361.4,0.00043562,2]
[341213019,1730650246518,-150.0,0.00043562,2]
[341213020,1730650246531,-361.4,0.00043562,2]
[341213021,1730650246547,-150.0,0.00043562,2]
[341213022,1730650246557,-150.0,0.00043562,2]
[341213023,1730650246567,-150.0,0.00043562,2]
[341213024,1730650246576,-361.4,0.00043562,2]
[341213025,1730650246585,-150.0,0.00043562,2]
[341213026,1730650246594,-150.0,0.00043562,2]
[341213027,1730650246604,-432.17,0.00043562,2]
[341213028,1730650246614,-150.0,0.00043562,2]
[341213029,1730650246623,-361.4,0.00043562,2]
[341213030,1730650246633,-150.0,0.00043562,2]
[341213031,1730650246642,-150.0,0.00043562,2]
[341213032,1730650246652,-150.0,0.00043562,2]
[341213033,1730650246661,-432.17,0.00043562,2]
[341213034,1730650246670,-432.17,0.00043562,2]
[341213035,1730650246680,-150.0,0.00043562,2]
[341213036,1730650246689,-500.0,0.00043632,2]
[341213037,1730650246698,-500.0,0.00043632,2]
[341213038,1730650246708,-500.0,0.00043632,2]
[341213039,1730650246723,-150.0,0.00043644,120]
[341213040,1730650246732,-1998.0,0.000437,7]
[341213041,1730650246742,-165.2,0.000437,10]
[341213042,1730650246754,-150.0,0.00043701,2]
[341213043,1730650246765,-150.0,0.00043703,2]
[341213044,1730650246775,-150.0,0.00043705,2]
[341213045,1730650246785,-150.0,0.00043706,2]
[341213046,1730650246795,-150.0,0.00043706,2]
[341213047,1730650246806,-150.0,0.00043709,2]
[341213048,1730650246816,-150.0,0.00043718,2]
[341213049,1730650246826,-150.0,0.0004372,2]
[341213050,1730650246835,-150.0,0.00043727,2]
[341213051,1730650246844,-150.0,0.00043729,2]
[341213052,1730650246855,-150.0,0.00043731,2]
[341213053,1730650246865,-150.0,0.00043732,2]
[341213054,1730650246875,-150.0,0.00043735,2]
[341213055,1730650246885,-150.0,0.00043737,2]
[341213056,1730650246894,-150.0,0.00043738,2]
[341213057,1730650246903,-150.0,0.00043739,2]
[341213058,1730650246912,-150.0,0.00043739,2]
[341213059,1730650246921,-150.0,0.0004374,2]
[341213060,1730650246930,-150.0,0.00043741,2]
[341213061,1730650246940,-150.0,0.00043742,2]
[341213062,1730650246949,-150.0,0.00043743,2]
[341213063,1730650246958,-6000.0,0.00043748,31]
[341213064,1730650246968,-150.0,0.0004375,2]
[341213065,1730650246977,-150.0,0.0004375,2]
[341213066,1730650246986,-150.0,0.00043753,2]
[341213067,1730650246996,-150.0,0.00043754,2]
[341213068,1730650247005,-293.05498943,0.00043757,2]
[341213070,1730650247017,-150.0,0.00043758,2]
[341213071,1730650247026,-879.0176,0.0004376,2]
[341213072,1730650247036,-2000.0,0.0004376,2]
[341213073,1730650247046,-150.0,0.00043769,2]
[341213074,1730650247055,-150.0,0.00043772,2]
[341213075,1730650247064,-150.0,0.00043776,2]
[341213076,1730650247073,-300.0,0.00043779,2]
[341213077,1730650247082,-150.0,0.0004378,2]
[341213078,1730650247091,-150.0,0.00043781,2]
[341213079,1730650247100,-150.0,0.00043782,2]
[341213080,1730650247109,-150.0,0.00043783,2]
[341213081,1730650247119,-150.0,0.00043789,2]
[341213082,1730650247129,-150.0,0.0004379,2]
[341213083,1730650247142,-67.85917431,0.0004379,2]
[341213084,1730650247154,-82.14082569,0.0004379,2]
[341213085,1730650247164,-150.0,0.00043791,2]
[341213086,1730650247174,-150.0,0.00043793,2]
[341213087,1730650247183,-263.50743941,0.00043793,2]
[341213088,1730650247193,-60.1517349,0.00043794,2]
[341213089,1730650247208,-89.8482651,0.00043794,2]
[341213090,1730650247219,-150.0,0.00043795,2]
[341213091,1730650247229,-150.0,0.00043796,2]
[341213092,1730650247239,-2632.01683652,0.00043798,32]
[341213093,1730650247249,-150.0,0.00043799,2]
[341213094,1730650247259,-878.645529,0.000438,2]
[341213095,1730650247268,-150.0,0.000438,2]
[341213096,1730650247277,-150.0,0.00043803,2]
[341213097,1730650247287,-150.0,0.00043805,2]
[341213098,1730650247296,-150.0,0.00043808,2]
[341213099,1730650247305,-150.0,0.00043809,2]
[341213100,1730650247315,-150.0,0.0004381,2]
[341213101,1730650247324,-150.0,0.0004381,2]
[341213102,1730650247333,-209.58000746,0.00043816,2]
[341213103,1730650247343,-150.0,0.00043822,2]
[341213104,1730650247353,-150.0,0.00043824,2]
[341213105,1730650247362,-8727.62215502,0.00043834,2]
[341213106,1730650247373,-1735.0,0.00043834,2]
[341213107,1730650567780,156.42,0.00015342,2]
[341213108,1730651108442,93687.06,0.00016,2]
[341213135,1730651274209,153.95859072,0.00025,120]
[341213136,1730651286940,22963.86910268,0.00015,2]
[341213160,1730651432104,-156.77,0.00015342,2]
[341213161,1730651432113,-156.7941553,0.00015999,2]
[341213162,1730651432123,-4632.17294446,0.00016,2]
[341213163,1730651432134,-1019.55718188,0.00016,2]
[341213164,1730651432163,-1471.67541498,0.00016,2]
[341213165,1730651432175,-1300.0,0.00016,2]
[341213166,1730651432222,-6236.66397548,0.00016,2]
[341213167,1730651432336,-94436.41132203,0.00016,2]
[341213168,1730651432346,-160.09703198,0.0002015,2]
[341213169,1730651432356,-250.0,0.00021,2]
[341213170,1730651432365,-409.0,0.000221,2]
[341213171,1730651432375,-300.0,0.00023,2]
[341213172,1730651432384,-808.0,0.00024235,2]
[341213173,1730651432393,-812.0,0.00024235,2]
[341213174,1730651432402,-150.0,0.00024235,2]
[341213175,1730651432411,-451.0,0.00024235,2]
[341213176,1730651432421,-1402.073,0.00024235,2]
[341213177,1730651432431,-274.7085,0.0003,2]
[341213178,1730651432440,-274.7085,0.0003,2]
[341213179,1730651432450,-151.0,0.0003,120]
[341213180,1730651432460,-151.0,0.0003,120]
[341213181,1730651432470,-201.02175,0.0003,2]
[341213182,1730651432479,-529.11438245,0.0003121,2]
[341213183,1730651432488,-700.0,0.00034173,12]
[341213184,1730651432498,-700.0,0.00034173,12]
[341213185,1730651432507,-700.0,0.00034173,12]
[341213187,1730651432517,-700.0,0.00034173,12]
[341213188,1730651432526,-700.0,0.00034173,12]
[341213189,1730651432535,-289.33,0.00035581,2]
[341213190,1730651432546,-201.7,0.00035616,30]
[341213191,1730651432555,-153.0,0.00035616,2]
[341213192,1730651432565,-9048.70926978,0.000365,2]
[341213193,1730651432575,-151.0,0.00036658,120]
[341213194,1730651432584,-1537.19,0.0003684,2]
[341213195,1730651432594,-1537.19,0.00037432,2]
[341213197,1730651432603,-274.87,0.00037474,2]
[341213199,1730651432613,-4360.44,0.00037827,2]
[341213201,1730651432622,-177.66,0.00037841,120]
[341213203,1730651432632,-884.08,0.0003789,3]
[341213205,1730651432641,-6263.83334005,0.000379,2]
[341213206,1730651432650,-1537.19,0.00038023,2]
[341213207,1730651432659,-1537.19,0.00038615,2]
[341213208,1730651432669,-500.0,0.00038774,60]
[341213209,1730651432678,-500.0,0.00038774,2]
[341213210,1730651432688,-500.0,0.00038774,2]
[341213211,1730651432697,-500.0,0.00039181,2]
[341213212,1730651432707,-1537.19,0.00039207,2]
[341213213,1730651432716,-1000.0,0.00039392,2]
[341213214,1730651432726,-627.7192363,0.00039468,15]
[341213215,1730651432736,-23900.0,0.00039469,2]
[341213216,1730651432745,-326.45598174,0.00039571,2]
[341213217,1730651432754,-567.90689351,0.00039639,2]
[341213218,1730651432764,-500.0,0.00039639,2]
[341213219,1730651432773,-500.0,0.00039639,2]
[341213220,1730651432783,-500.0,0.00039639,2]
[341213221,1730651432793,-512.02700311,0.00039639,2]
[341213222,1730651432803,-500.0,0.00039639,2]
[341213223,1730651432812,-500.0,0.00039639,2]
[341213224,1730651432822,-537.83410551,0.00039639,2]
[341213225,1730651432831,-500.0,0.00039639,2]
[341213226,1730651432841,-500.0,0.00039639,2]
[341213227,1730651432850,-11231.74968354,0.0003964,2]
[341213228,1730651432866,-10284.133557,0.0003964,2]
[341213229,1730651432877,-700.0,0.0003964,2]
[341213235,1730651438429,-419.89454121,0.00024235,2]
[341213239,1730651440163,-168.07645879,0.00024235,2]
[341213240,1730651440173,-557.0,0.00024235,2]
[341213241,1730651440182,-161.01786207,0.00039571,2]
[341213242,1730651440192,-232.43,0.0003963,10]
[341213243,1730651440201,-506.70336793,0.00039639,2]
[341213244,1730651440211,-500.0,0.00039639,2]
[341213245,1730651440223,-527.45262645,0.00039639,2]
[341213246,1730651440234,-559.39138297,0.00039639,2]
[341213247,1730651440244,-504.98720443,0.00039639,2]
[341213248,1730651440254,-500.0,0.00039639,2]
[341213249,1730651440264,-500.0,0.00039639,2]
[341213250,1730651440275,-524.62624025,0.00039639,2]
[341213251,1730651440285,-140642.07314982,0.0003964,2]
[341213252,1730651440300,-109635.49630631,0.0003964,2]
[341213253,1730651440311,-6888.92200746,0.0003964,2]
[341213254,1730651440322,-888.64996,0.0003964,2]
[341213255,1730651440333,-593.23679496,0.0003964,2]
[341213259,1730651443338,-410.47218923,0.00039639,2]
[341213260,1730651443349,-500.0,0.00039639,2]
[341213261,1730651443359,-513.96114668,0.00039639,2]
[341213262,1730651443369,-541.7954748,0.00039639,2]
[341213263,1730651443379,-25606.84714091,0.0003964,2]
[341213264,1730651443388,-156.42,0.00039671,2]
[341213265,1730651443397,-150.0,0.00039721,7]
[341213266,1730651443406,-274.87,0.00039738,2]
[341213267,1730651443414,-6236.66,0.0003974,2]
[341213268,1730651443423,-1537.19,0.00039799,2]
[341213269,1730651443432,-250.0,0.00039808,2]
[341213270,1730651443440,-326.45598162,0.00039901,2]
[341213271,1730651443449,-500.0,0.00039913,2]
[341213272,1730651443458,-510.13103335,0.00039913,2]
[341213273,1730651443467,-500.0,0.00039913,2]
[341213274,1730651443476,-500.0,0.00039913,2]
[341213275,1730651443486,-567.0,0.00039913,2]
[341213276,1730651443494,-22844.02464457,0.00039988,2]
[341213279,1730651446068,-1062.634,0.00026611,2]
[341213280,1730651446077,-516.6532221,0.00039639,2]
[341213281,1730651446087,-500.0,0.00039639,2]
[341213282,1730651446097,-500.0,0.00039639,2]
[341213283,1730651446111,-4754.80689697,0.00039988,2]
[341213284,1730651446124,-2555.1253553,0.00039988,2]
[341213285,1730651446184,-3489.93202244,0.00039988,2]
[341213286,1730651446243,-512.56775956,0.00039639,2]
[341213287,1730651446252,-102.93579045,0.00039988,2]
[341213288,1730651446264,-14570.2,0.00039988,2]
[341213289,1730651446277,-6966.7,0.00039988,2]
[341213301,1730651980121,-152.97,0.00015342,2]
[341213306,1730652303687,156.93,0.00015342,2]
[341213378,1730652632551,-270.66487517,0.00018123,2]
[341213379,1730652632561,-169.27,0.000216,2]
[341213380,1730652632572,-451.0,0.00026646,2]
[341213381,1730652632582,-406.514,0.00026646,2]
[341213382,1730652632591,-304.95112483,0.00026646,2]
[341213383,1730652632602,-467.76995278,0.00026646,2]
[341213384,1730652632613,-124.10892239,0.00026646,2]
[341213385,1730652632622,-169.38707761,0.00026646,2]
[341213386,1730652632633,-292.69104,0.00026646,2]
[341213389,1730652638451,-813.09788239,0.00026646,2]
[341213390,1730652638462,-150.0,0.00026646,2]
[341213391,1730652638472,-1072.348,0.00026646,2]
[341213392,1730652638481,-248.7,0.00026646,2]
[341213393,1730652638492,-507.83,0.000282,7]
[341213394,1730652638504,-812.0,0.00029646,2]
[341213395,1730652638516,-150.0,0.00029646,2]
[341213396,1730652638525,-150.0,0.00029646,2]
[341213397,1730652638534,-150.0,0.00034548,10]
[341213398,1730652638543,-352.99,0.00034867,2]
[341213399,1730652638553,-383.95,0.00034867,10]
[341213400,1730652638562,-384.29,0.00035755,2]
[341213401,1730652638571,-423.19,0.000358,14]
[341213402,1730652638580,-150.0,0.000363,2]
[341213403,1730652638590,-182.66,0.00036309,120]
[341213404,1730652638599,-384.29,0.00036329,2]
[341213405,1730652638608,-150.0,0.00036434,7]
[341213406,1730652638617,-177.66,0.00036636,120]
[341213407,1730652638626,-7080.85,0.0003664,2]
[341213408,1730652638635,-250.02,0.00036832,2]
[341213409,1730652638644,-384.29,0.00036904,2]
[341213410,1730652638653,-1756.98,0.00037038,2]
[341213411,1730652638662,-500.0,0.00037038,2]
[341213412,1730652638671,-500.0,0.00037038,2]
[341213413,1730652638680,-352.99,0.00037131,2]
[341213414,1730652638689,-167.14,0.00037279,120]
[341213415,1730652638698,-384.29,0.00037478,2]
[341213416,1730652638707,-150.0,0.00037579,2]
[341213417,1730652638716,-700.0,0.000376,13]
[341213418,1730652638725,-1000.0,0.00037602,2]
[341213419,1730652638735,-168.44,0.0003763,2]
[341213420,1730652638745,-1500.0,0.000377,13]
[341213421,1730652638754,-2200.0,0.000378,13]
[341213422,1730652638763,-2044.7633,0.000379,2]
[341213423,1730652638772,-155.1285,0.000379,2]
[341213424,1730652638781,-2426.8428,0.000379,2]
[341213425,1730652638790,-5638.4669,0.000379,2]
[341213426,1730652638799,-119.29261761,0.000379,2]
[341213427,1730652638811,-41.21159074,0.000379,2]
[341213428,1730652638820,-3000.0,0.000379,13]
[341213429,1730652638829,-160.23819069,0.000379,2]
[341213430,1730652638838,-161.01786207,0.000379,2]
[341213431,1730652638847,-725.5730031,0.000379,2]
[341213432,1730652638855,-204.58054288,0.000379,7]
[341213433,1730652638865,-266.16553157,0.000379,2]
[341213434,1730652638874,-214.65479573,0.000379,12]
[341213435,1730652638883,-2408.16599795,0.000379,2]
[341213436,1730652638892,-160.1726992,0.00037973,5]
[341213437,1730652638901,-500.0,0.00037973,2]
[341213438,1730652638910,-159.743872,0.00037973,5]
[341213439,1730652638920,-327.03,0.00037989,10]
[341213440,1730652638930,-213.89226719,0.0003799,2]
[341213441,1730652638939,-213.89226719,0.0003799,2]
[341213442,1730652638948,-213.89226719,0.0003799,2]
[341213443,1730652638957,-439.40346541,0.00037998,15]
[341213444,1730652638967,-2651.89869465,0.00037999,2]
[341213445,1730652638976,-503.29028419,0.00037999,2]
[341213446,1730652638985,-500.0,0.00037999,2]
[341213447,1730652638994,-511.53456551,0.00037999,2]
[341213448,1730652639005,-500.0,0.00037999,2]
[341213449,1730652639014,-514.51688579,0.00037999,2]
[341213450,1730652639023,-500.0,0.00037999,2]
[341213451,1730652639032,-500.0,0.00037999,2]
[341213452,1730652639041,-500.0,0.00037999,2]
[341213453,1730652639051,-500.0,0.00037999,2]
[341213454,1730652639061,-507.46865642,0.00037999,2]
[341213455,1730652639070,-500.0,0.00037999,2]
[341213456,1730652639080,-272.90494955,0.00037999,2]
[341213457,1730652639089,-507.50458027,0.00037999,2]
[341213458,1730652639099,-500.0,0.00037999,2]
[341213459,1730652639255,-500.0,0.00037999,2]
[341213460,1730652639265,-519.63145456,0.00037999,2]
[341213461,1730652639274,-535.90110265,0.00037999,2]
[341213462,1730652639283,-540.79257508,0.00037999,2]
[341213463,1730652639292,-500.0,0.00037999,2]
[341213464,1730652639301,-592.43124866,0.00037999,2]
[341213465,1730652639310,-517.36486072,0.00037999,2]
[341213466,1730652639319,-500.0,0.00037999,2]